Cogmind - Beta 12 @@@ ROGUE MODE // 2023.05.10 @ 11:17:25 Player: kawyua Result: Destroyed by Y-45 Defender with Beam Rifle Performance ------------- Evolutions (2) 1000 Regions Visited (8) 1600 Robots Destroyed (99) 495 Value Destroyed (2775) 2775 Prototype IDs (3) 60 Alien Tech Used (0) 0 Bonus (140) 140 TOTAL SCORE: 6070 Bonus ------- High Alert Combat Kills 11 Follower Combat Kills 145 Friendly Fire -16 Cogmind --------- Core Integrity 0/550 Matter 300/300 Energy 234/240 System Corruption 0% Temperature Cool (9) Movement Rolling (210) Ox8 Location -8/Recycling Parts ------- > --- POWER (1) -------- Nuclear Core > --- PROPULSION (3) --- Armored Treads Armored Wheel > --- UTILITY (5) ------ Scrap Engine Huge Storage Unit Improved Signal Interpreter Drone Bay (2/2) > --- WEAPON (2) ------- Gauss Rifle Great Maul > --- INVENTORY (25) --- Flight Unit Flight Unit VTOL Module Cesium-ion Thruster Advanced Weight Redist. System Structural Scanner Makeshift Terrain Scanner ECM Suite Reaction Control System Makeshift Cloaking Device Improved Propulsion Shielding Heavy Armor Plating Hardlight Generator Authchip [Device] Authchip [Device] Drone Bay (2/2) Drone Bay (2/2) Drone Bay (2/2) Pulse Rifle Heavy Assault Rifle Minigun Minigun Mini Grenade Launcher Improved Datajack Peak State ------------ > --- POWER ------------ Nuclear Core > --- PROPULSION ------- Armored Treads Armored Treads Armored Wheel > --- UTILITY ---------- Scrap Engine Huge Storage Unit Improved Signal Interpreter Advanced Targeting Computer > --- WEAPON ----------- Gauss Rifle Flail > --- INVENTORY -------- Flight Unit Flight Unit VTOL Module Cesium-ion Thruster Advanced Weight Redist. System Structural Scanner Makeshift Terrain Scanner ECM Suite Reaction Control System Makeshift Cloaking Device Improved Propulsion Shielding Heavy Armor Plating Drone Bay Drone Bay Drone Bay Drone Bay Pulse Rifle Heavy Assault Rifle Minigun Minigun Mini Grenade Launcher Improved Datajack [Rating: 47] Favorites ----------- Power Improved Ion Engine Engine Improved Ion Engine Power Core Nuclear Core Propulsion Armored Wheel Treads Armored Treads Leg Improved Carbon-fiber Leg Wheel Armored Wheel Flight Unit Flight Unit Utility Hacking Suite Device Seismic Detector Storage Large Storage Unit Processor Signal Interpreter Hackware Hacking Suite Protection Hardened Medium Armor Plating Weapon Heavy Assault Rifle Energy Gun Small Laser Ballistic Gun Heavy Assault Rifle Special Weapon Plasma Cutter Impact Weapon Flail Build | -11 -10 -9 -9 -9 -8 -8 -8 -8 ------- Run | Jun Mat Mat Min Exi Min Mat Sto Rec Slots Evolved 4 | . . 2 . . . 2 . . Power . | . . . . . . . . . Propulsion 1 | . . . . . . 1 . . Utility 3 | . . 2 . . . 1 . . Weapon . | . . . . . . . . . Parts Attached 94 | 7 8 18 3 3 4 31 16 4 Power 11 | 1 2 3 . 1 . 2 2 . Engine 7 | 1 2 2 . 1 . 1 . . Core 4 | . . 1 . . . 1 2 . Reactor . | . . . . . . . . . Propulsion 20 | 2 2 3 . . . 10 3 . Treads 10 | . 2 . . . . 6 2 . Leg 1 | . . . . . . 1 . . Wheel 8 | 2 . 3 . . . 2 1 . Hover . | . . . . . . . . . Flight 1 | . . . . . . 1 . . Utility 30 | 2 2 6 2 1 2 7 5 3 Device 13 | 1 1 2 1 1 1 . 3 3 Storage 4 | 1 . 1 . . . 2 . . Processor 4 | . . 1 1 . . 1 1 . Hackware 1 | . 1 . . . . . . . Protection 8 | . . 2 . . 1 4 1 . Artifact . | . . . . . . . . . Weapon 33 | 2 2 6 1 1 2 12 6 1 Energy Gun 5 | . 1 3 . . . 1 . . Energy Cannon . | . . . . . . . . . Ballistic Gun 19 | 2 1 3 1 . 1 7 4 . Ballistic Cannon . | . . . . . . . . . Launcher . | . . . . . . . . . Special Weapon 2 | . . . . . 1 1 . . Impact Weapon 7 | . . . . 1 . 3 2 1 Slashing Weapon . | . . . . . . . . . Piercing Weapon . | . . . . . . . . . Special Melee Weapon . | . . . . . . . . . Unidentified Prototypes 1 | . . . . . . 1 . . Parts Lost 19 | . 4 1 1 . 1 9 3 . Power 3 | . 1 . . . . 1 1 . Propulsion 5 | . 2 . . . . 3 . . Utility 6 | . . 1 . . . 3 2 . Weapon 5 | . 1 . 1 . 1 2 . . Highest Loss Streak 5 | . 3 1 1 . 1 5 3 . To Critical Strikes 1 | . . . . . . 1 . . Average Slot Usage (%) 97 | . 97 99 100 100 100 97 99 81 Engine 8 | . 12 9 11 11 11 7 . . Core 2 | . . 1 . . . 1 9 9 Treads 11 | . 7 11 . . . 22 18 9 Wheel 13 | . 20 10 22 22 22 3 9 9 Device 8 | . 8 11 8 11 10 3 8 11 Storage 10 | . 14 11 11 11 11 9 9 9 Processor 9 | . . 2 11 11 11 14 18 15 Hackware 6 | . 5 11 11 11 11 5 . . Protection 5 | . . 7 2 . . 11 9 . Energy Gun 2 | . 5 10 5 . . . . . Ballistic Gun 16 | . 21 11 16 19 18 15 13 9 Impact Weapon 1 | . . . . 2 1 2 4 9 Naked Turns . | . . . . . . . . . Heaviest Build 108 | 13 15 43 37 33 34 108 107 102 Greatest Support 84 | 32 40 40 24 24 24 84 16 12 Greatest Overweight (x) 8 | 1 . 2 1 1 1 6 8 8 Average Overweight (x) 1 | . . . 1 1 1 1 6 7 Largest Inventory Capacity 25 | 8 8 15 15 15 15 25 25 25 Average Capacity 16 | 7 8 14 15 15 15 18 25 25 Most Carried 25 | 5 8 15 15 15 15 25 25 25 Average Carried 15 | 2 5 13 14 14 14 18 24 24 Final Capacity 25 | 8 8 15 15 15 15 25 25 25 Final Carried 25 | 3 8 15 14 15 15 25 22 25 Class Distribution -------------------- 45% | Mutant 35% | Commander-Mutant 18% | Scavenger-Mutant Dominant Class ---------------- Mutant | -10/Materials Mutant | -9/Materials Scavenger-Mutant | -9/Mines Commander-Mutant | -9/Exiles Commander-Mutant | -8/Mines Commander-Mutant | -8/Materials Mutant | -8/Storage Mutant | -8/Recycling Resources | -11 -10 -9 -9 -9 -8 -8 -8 -8 ----------- Run | Jun Mat Mat Min Exi Min Mat Sto Rec Matter Collected 2381 | 304 185 371 66 . 112 749 544 50 Remotely . | . . . . . . . . . Salvage Created 3949 | 137 869 789 66 . 77 1138 873 . Parts 221 | 4 48 54 1 . 12 66 36 . Haulers Intercepted . | . . . . . . . . . Recyclers Shooed 7 | . 4 2 . . . 1 . . Parts Field Recycled . | . . . . . . . . . Retrieved Matter . | . . . . . . . . . Parts Self-Destructed . | . . . . . . . . . Prevented . | . . . . . . . . . Kills | -11 -10 -9 -9 -9 -8 -8 -8 -8 ------- Run | Jun Mat Mat Min Exi Min Mat Sto Rec Combat Hostiles Destroyed 83 | . 13 22 4 . 5 24 15 . Melee 2 | . . . . . . 2 . . Guns 77 | . 13 22 4 . 3 20 15 . Cannons 2 | . . . . . 2 . . . Classes Destroyed 11 | 2 3 2 . . . 4 . . Worker 1 | . . . . . . 1 . . Tunneler 2 | 2 . . . . . . . . Recycler 10 | 1 4 2 . . . 2 1 . Operator 1 | . 1 . . . . . . . Watcher 2 | . 1 . . . . . 1 . Swarmer 31 | . . 14 4 . 5 8 . . Grunt 32 | . 13 2 . . . 5 12 . Brawler 1 | . . . . . . 1 . . Sentry 15 | . . 6 . . . 6 3 . Specialist 3 | . . . . . . 3 . . Hunter 1 | . . . . . . 1 . . Best Kill Streak 6 | 2 4 6 4 . 4 6 4 . Combat Bots Only 6 | . 4 6 4 . 4 6 4 . Max Kills in Single Turn 2 | 1 1 1 1 . 1 1 2 . Gunslinging . | . . . . . . . . . Exploded . | . . . . . . . . . Melee 1 | . . . . . . 1 . . Uniques/NPCs Destroyed . | . . . . . . . . . Combat | -11 -10 -9 -9 -9 -8 -8 -8 -8 -------- Run | Jun Mat Mat Min Exi Min Mat Sto Rec Damage Taken 5521 | . 789 937 220 . 144 2100 1171 160 Core 1162 | . 238 236 78 . 49 356 147 58 Absorbed by Shields . | . . . . . . . . . Core Remaining (%) 37 | 100 4 . . . 9 . . . Volleys Fired 315 | 17 77 66 19 2 9 74 51 . Largest 2 | 2 2 2 2 2 2 2 2 . Hottest 88 | 40 60 88 76 43 43 51 53 . Shots Fired 615 | 34 144 132 38 4 18 143 102 . Gun 605 | 34 144 132 38 4 11 140 102 . Cannon . | . . . . . . . . . Launcher . | . . . . . . . . . Special 10 | . . . . . 7 3 . . Kinetic 522 | 34 120 84 27 4 11 140 102 . Thermal 93 | . 24 48 11 . 7 3 . . Explosive . | . . . . . . . . . Electromagnetic . | . . . . . . . . . Robot Hit Streak 33 | 7 11 10 8 . 4 33 27 . Robot Miss Streak 6 | 2 3 5 4 . 4 6 3 . Penetration Max 1 | . . . . . . 1 1 . Secondary Targets 6 | . 2 2 . . 1 . 1 . Max Gunslinging Chain 1 | . 1 1 . . 1 . 1 . Shots Hit Robots 420 | 21 98 78 18 . 6 119 77 3 Core Hits 179 | 6 46 37 4 . 5 50 31 . Critical Kills 4 | . 2 . . . . . 2 . Critical Parts Destroyed 8 | 1 1 . . . . 4 2 . Critical Strikes 15 | 1 3 2 . . . 4 4 1 Burn 2 | . . 2 . . . . . . Destroy 8 | 1 3 . . . . . 4 . Smash 5 | . . . . . . 4 . 1 Melee Attacks 59 | . . . . 13 1 18 24 3 Impact 59 | . . . . 13 1 18 24 3 Slashing . | . . . . . . . . . Piercing . | . . . . . . . . . Sneak Attacks 1 | . . . . . . 1 . . Combat Hostiles . | . . . . . . . . . Follow-up Attacks . | . . . . . . . . . Damage Inflicted 6018 | 177 859 1009 247 . 76 2053 1466 131 Guns 5574 | 177 859 1009 247 . 52 1764 1466 . Cannons . | . . . . . . . . . Explosions . | . . . . . . . . . Melee 402 | . . . . . . 271 . 131 Ramming 7 | . . . . . . 7 . . Kinetic 4761 | 177 629 527 146 . 52 1764 1466 . Thermal 848 | . 230 482 101 . 24 11 . . Explosive . | . . . . . . . . . Electromagnetic . | . . . . . . . . . Impact 402 | . . . . . . 271 . 131 Slashing . | . . . . . . . . . Piercing . | . . . . . . . . . Highest Corruption . | . . . . . . . . . Average Corruption . | . . . . . . . . . Corruption Purged . | . . . . . . . . . Corruption Blocked . | . . . . . . . . . Overload Shots . | . . . . . . . . . Overflow Damage 167 | . . . . . . 167 . . Projectiles . | . . . . . . . . . Explosions . | . . . . . . . . . Melee 167 | . . . . . . 167 . . Knockbacks . | . . . . . . . . . Impact . | . . . . . . . . . Kinetic . | . . . . . . . . . Secondary . | . . . . . . . . . Self-Inflicted Damage 3 | . . . . . . 3 . . Shots . | . . . . . . . . . Rammed 1 | . . . . . . 1 . . Targets Rammed 1 | . . . . . . 1 . . Kicked . | . . . . . . . . . Crushed . | . . . . . . . . . Highest Temperature 462 | . 120 462 90 . 2 53 84 . Average Temperature 75 | . 36 157 41 . 2 15 24 . Received Heat Transfer 1869 | . 459 189 . . 6 567 603 45 Effects 1 | . . 1 . . . . . . Short Circuit 1 | . . 1 . . . . . . Siege Activations . | . . . . . . . . . Robots Corrupted . | . . . . . . . . . Combat Hostiles . | . . . . . . . . . Parts Fried 7 | . . . . . . 7 . . Impact Corruptions 7 | . . . . . . 7 . . Robots Melted . | . . . . . . . . . Combat Hostiles . | . . . . . . . . . Parts Melted 4 | . 1 3 . . . . . . Heat Transferred 2195 | . 525 1300 259 . 74 37 . . Parts Sabotaged . | . . . . . . . . . Parts Stolen . | . . . . . . . . . Parts Stripped . | . . . . . . . . . Power Chain Reactions . | . . . . . . . . . Missiles Intercepted . | . . . . . . . . . Alert | -11 -10 -9 -9 -9 -8 -8 -8 -8 ------- Run | Jun Mat Mat Min Exi Min Mat Sto Rec Peak Influence 427 | 15 203 427 220 . 107 316 299 67 Initial 140 | . 9 38 140 . . 36 81 62 Average 123 | 5 61 186 174 . 80 143 152 51 Maximum Alert Level 2 | . 1 2 1 . . 1 1 . Low Security (%) 83 | 100 96 59 58 . 100 87 75 100 Level 1 16 | . 3 39 41 . . 12 24 . Level 2 . | . . 1 . . . . . . Level 3 . | . . . . . . . . . Level 4 . | . . . . . . . . . Level 5 . | . . . . . . . . . High Security . | . . . . . . . . . Max Security . | . . . . . . . . . Squads Dispatched 8 | . 2 1 . . . 3 2 . Investigation 2 | . 1 1 . . . . . . Extermination . | . . . . . . . . . Reinforcement 6 | . 1 . . . . 3 2 . Assault . | . . . . . . . . . Garrison . | . . . . . . . . . Intercept . | . . . . . . . . . Searches Triggered . | . . . . . . . . . Construction Impeded . | . . . . . . . . . Haulers Reinforced . | . . . . . . . . . Active Scanning Responses . | . . . . . . . . . Cargo Convoy Interrupts . | . . . . . . . . . Stealth | -11 -10 -9 -9 -9 -8 -8 -8 -8 --------- Run | Jun Mat Mat Min Exi Min Mat Sto Rec Distress Signals 13 | . 2 1 . . . 3 7 . Communications Jammed . | . . . . . . . . . Distress Signals . | . . . . . . . . . Times Spotted 138 | . 18 33 4 . 7 48 27 1 Peak Tracking Total 9 | . 5 9 4 . 4 9 6 1 Tactical Retreats 5 | . . 1 . . . 2 2 . Traps | -11 -10 -9 -9 -9 -8 -8 -8 -8 ------- Run | Jun Mat Mat Min Exi Min Mat Sto Rec Traps Triggered 3 | . 1 1 . . . . 1 . Indirectly . | . . . . . . . . . Trap Hack Attempts . | . . . . . . . . . Triggered . | . . . . . . . . . Disarmed . | . . . . . . . . . Reprogrammed . | . . . . . . . . . Reused . | . . . . . . . . . Traps Extracted . | . . . . . . . . . Installed . | . . . . . . . . . Triggered . | . . . . . . . . . Machines | -11 -10 -9 -9 -9 -8 -8 -8 -8 ---------- Run | Jun Mat Mat Min Exi Min Mat Sto Rec Machines Disabled 3 | . . 1 . . 1 . 1 . Max in Single Turn 1 | . . 1 . . 1 . 1 . Machines Repaired . | . . . . . . . . . Machines Sabotaged . | . . . . . . . . . Overloaded Fab Kills . | . . . . . . . . . Hacking | -11 -10 -9 -9 -9 -8 -8 -8 -8 --------- Run | Jun Mat Mat Min Exi Min Mat Sto Rec Machines Accessed 16 | . 3 1 . . . 6 2 4 Terminals 12 | . 2 1 . . . 4 2 3 Fabricators . | . . . . . . . . . Repair Stations . | . . . . . . . . . Recycling Units 2 | . 1 . . . . . . 1 Scanalyzers 2 | . . . . . . 2 . . Garrison Access . | . . . . . . . . . Total Hacks 39 | . 4 3 . . . 21 3 8 Successful 19 | . 2 2 . . . 11 1 3 Failed 20 | . 2 1 . . . 10 2 5 Catastrophic 4 | . . . . . . 2 1 1 Database Lockouts . | . . . . . . . . . Manual 14 | . 4 3 . . . 4 1 2 Terminals 28 | . 3 3 . . . 12 3 7 Fabricators . | . . . . . . . . . Repair Stations . | . . . . . . . . . Recycling Units 2 | . 1 . . . . . . 1 Scanalyzers 9 | . . . . . . 9 . . Garrison Access . | . . . . . . . . . Terminal Hacks 9 | . 1 1 . . . 4 1 2 Record 1 | . . . . . . 1 . . Prototype ID Bank 1 | . . . . . . 1 . . Open Door 1 | . . . . . . . 1 . Terminal Index 2 | . . . . . . 1 . 1 Unreport Threat 1 | . . . . . . 1 . . Maintenance Status 2 | . 1 1 . . . . . . Zone Layout 1 | . . . . . . . . 1 Fabricator Hacks . | . . . . . . . . . Repair Station Hacks . | . . . . . . . . . Recycling Unit Hacks . | . . . . . . . . . Scanalyzer 6 | . . . . . . 6 . . Insert Component 5 | . . . . . . 5 . . Analyze 1 | . . . . . . 1 . . Garrison Access Hacks . | . . . . . . . . . Unauthorized Hacks 4 | . 1 1 . . . 1 . 1 Terminals 2 | . . 1 . . . 1 . . Operators 2 | . . 1 . . . 1 . . Fabricators . | . . . . . . . . . Repair Stations . | . . . . . . . . . Recycling Units 2 | . 1 . . . . . . 1 Monitor 1 | . 1 . . . . . . . Recyclers 1 | . . . . . . . . 1 Scanalyzers . | . . . . . . . . . Garrison Access . | . . . . . . . . . Data Cores Recovered . | . . . . . . . . . Used . | . . . . . . . . . Hacking Detections 12 | . 2 . . . . 6 1 3 Full Trace Events . | . . . . . . . . . Feedback Events . | . . . . . . . . . Feedback Blocked . | . . . . . . . . . Robot Schematics Acquired . | . . . . . . . . . Robots Built . | . . . . . . . . . Authchips . | . . . . . . . . . Time . | . . . . . . . . . Total Robot Build Rating . | . . . . . . . . . Part Schematics Acquired 1 | . . . . . . 1 . . Parts Built . | . . . . . . . . . Authchips . | . . . . . . . . . Time . | . . . . . . . . . Total Part Build Rating . | . . . . . . . . . Parts Repaired . | . . . . . . . . . Time . | . . . . . . . . . Parts Recycled . | . . . . . . . . . Recycled Matter . | . . . . . . . . . Retrieved Matter . | . . . . . . . . . Retrieved Components . | . . . . . . . . . Parts Scanalyzed 2 | . . . . . . 2 . . Part Schematics Acquired 1 | . . . . . . 1 . . Parts Damaged 1 | . . . . . . 1 . . Bothacking | -11 -10 -9 -9 -9 -8 -8 -8 -8 ------------ Run | Jun Mat Mat Min Exi Min Mat Sto Rec Used RIF Installer . | . . . . . . . . . Robots Hacked . | . . . . . . . . . Non-combat . | . . . . . . . . . Combat . | . . . . . . . . . Robot Hacks Applied . | . . . . . . . . . Relay Couplers Released . | . . . . . . . . . Fabnet Peak Effective % . | . . . . . . . . . Robots Rewired 3 | . . . . 3 . . . . Allies Hacked . | . . . . . . . . . Hacks Repelled . | . . . . . . . . . Allies | -11 -10 -9 -9 -9 -8 -8 -8 -8 -------- Run | Jun Mat Mat Min Exi Min Mat Sto Rec Total Allies 6 | . . . 3 3 . . . . Largest Group 6 | . . . 3 6 6 5 5 . Highest-Rated Group 64 | . . . 40 64 64 56 56 . Highest-Rated Ally 16 | . . . 16 16 16 16 16 . Total Orders 11 | . . . . . . 6 4 1 STAY 5 | . . . . . . 5 . . FOLLOW 1 | . . . . . . 1 . . EXPLORE 3 | . . . . . . . 2 1 RETURN 2 | . . . . . . . 2 . Ally Attacks 47 | . . . . . 3 16 28 . Total Damage 489 | . . . . . 32 168 289 . Kills 9 | . . . . . 2 5 2 . Allies Corrupted . | . . . . . . . . . Allies Melted . | . . . . . . . . . Intel | -11 -10 -9 -9 -9 -8 -8 -8 -8 ------- Run | Jun Mat Mat Min Exi Min Mat Sto Rec Robot Analysis Total . | . . . . . . . . . Derelict Logs Recovered 1 | . . . 1 . . . . . Drone Launches 10 | . . . . . . . 8 2 Drone Recoveries 9 | . . . . . . . 7 2 Exploration | -11 -10 -9 -9 -9 -8 -8 -8 -8 ------------- Run | Jun Mat Mat Min Exi Min Mat Sto Rec Turns Passed 8392 | 137 1556 1385 319 1020 498 2139 825 513 Spaces Moved 4726 | 85 736 844 215 881 423 1014 282 246 Core 24 | 24 . . . . . . . . Treads 1223 | . 229 361 . . . 633 . . Legs 1 | . . . . . . 1 . . Wheels 3478 | 61 507 483 215 881 423 380 282 246 Hover . | . . . . . . . . . Flight . | . . . . . . . . . Fastest Speed 50 | 50 100 105 105 105 105 90 190 195 Average Speed 134 | 88 118 128 105 105 105 167 196 198 Slowest Speed 260 | 100 160 160 105 105 105 260 210 210 Overloaded Moves . | . . . . . . . . . Propulsion Burnouts . | . . . . . . . . . Robots Hopped . | . . . . . . . . . Cave-ins Triggered . | . . . . . . . . . Exploration Rate (%) 58 | 5 60 66 46 94 85 60 56 51 Regions Visited 8 Branch Regions 5 Pre-discovered Areas . | . . . . . . . . . Known Exits Taken 5 | . . . 1 1 1 1 1 . Unknown Exits Taken 3 | 1 1 1 . . . . . . Scrap Searched 1 | . . . . . 1 . . . Spaces Dug 11 | . . . . . . 5 6 . Terrain Destroyed 11 | . . . . . . 5 6 . Melee 11 | . . . . . . 5 6 . Projectile . | . . . . . . . . . AOE . | . . . . . . . . . Terrain Rammed . | . . . . . . . . . Walls Destroyed . | . . . . . . . . . Machines Disabled . | . . . . . . . . . Actions | -11 -10 -9 -9 -9 -8 -8 -8 -8 --------- Run | Jun Mat Mat Min Exi Min Mat Sto Rec Total 6098 | 118 1300 1024 269 952 448 1287 432 268 Wait 714 | 1 461 42 32 16 11 100 45 6 Move 4718 | 84 735 843 214 880 422 1013 281 246 Hop . | . . . . . . . . . Pick Up 90 | 9 13 29 1 1 1 27 5 4 Fast Attach 25 | 1 2 5 . 2 . 12 2 1 Attach 30 | 6 4 5 1 . 1 7 4 2 Detach 2 | . . . . . . . . 2 Swap 39 | . 2 8 2 1 3 12 10 1 Drop 70 | . 6 26 . 2 . 23 10 3 Fire 315 | 17 77 66 19 2 9 74 51 . Melee 59 | . . . . 13 1 18 24 3 Ram 1 | . . . . . . 1 . . Kick . | . . . . . . . . . Crush . | . . . . . . . . . Escape Stasis . | . . . . . . . . . Rewire 35 | . . . . 35 . . . . Trap . | . . . . . . . . . Miscellaneous . | . . . . . . . . . Route ------- -11/Junkyard -10/Materials (discovered 4 exits: *Mat x3 / [*Min]) -9/Materials (discovered 2 exits: *Mat / [*Min]) -9/Mines (discovered 3 exits: *Mat x2 / *Exi) -9/Exiles (discovered 2 exits: *Min x2) -8/Mines (discovered 2 exits: *Mat x2) -8/Materials (discovered 2 exits: [*Fac] / *Sto) -8/Storage -8/Recycling History --------- Turn | Location | Event 10 | -11/Junkyard | Discovered new exit (range 16) 138 | -11/Junkyard | Entered Materials 301 | -10/Materials | Build established: Mutant 881 | -10/Materials | Discovered new exit (range 15) 1007 | -10/Materials | Discovered new exit (range 15) 1083 | -10/Materials | Core integrity fell below 50% 1263 | -10/Materials | Core integrity fell below 20% 1301 | -10/Materials | Lost 3 parts (2n1w) 1511 | -10/Materials | Discovered new exit (range 15) 1611 | -10/Materials | Discovered new exit (range 12) 1694 | -10/Materials | Entered another Materials area 1694 | -9/Materials | Evolved 2 slots: Utility x2 2059 | -9/Materials | Discovered new exit (range 12) 2535 | -9/Materials | Build established: Scavenger-Mutant 2602 | -9/Materials | Discovered new exit (range 12) 2856 | -9/Materials | Core integrity fell below 50% 3021 | -9/Materials | Build established: Mutant 3079 | -9/Materials | Entered Mines 3118 | -9/Mines | Discovered new exit (range 5) 3142 | -9/Mines | Identified exit to Materials 3271 | -9/Mines | Discovered exit to Materials (range 7) 3273 | -9/Mines | Identified exit to Exiles 3352 | -9/Mines | Assisted by bots powering up and referring to "LRC-V3" 3391 | -9/Mines | Deemed a non-threat by the Exiles lab entrance 3398 | -9/Mines | Entered Exiles 3398 | -9/Exiles | Found Exiles lab destroyed 3398 | -9/Exiles | Accompanied by 3 allies 3437 | -9/Exiles | Discovered new exit (range 14) 3438 | -9/Exiles | Build established: Scavenger-Mutant 3989 | -9/Exiles | Build established: Commander-Mutant 4033 | -9/Exiles | Discovered new exit (range 14) 4048 | -9/Exiles | Identified exit to Mines 4418 | -9/Exiles | Entered Mines 4418 | -8/Mines | Accompanied by 6 allies 4507 | -8/Mines | Core integrity fell below 20% 4789 | -8/Mines | Discovered exit to Materials (range 16) 4882 | -8/Mines | Discovered exit to Materials (range 5) 4916 | -8/Mines | Entered Materials 4916 | -8/Materials | Accompanied by 5 allies 4916 | -8/Materials | Evolved 2 slots: Propulsion x1, Utility x1 4973 | -8/Materials | Discovered new exit (range 15) 5012 | -8/Materials | Identified exit to Storage 5877 | -8/Materials | Core integrity fell below 50% 5921 | -8/Materials | Lost 5 parts (1p2n1u1w) 5963 | -8/Materials | Discovered new exit (range 10) 6721 | -8/Materials | Build established: Scavenger-Mutant 7055 | -8/Materials | Entered Storage 7055 | -8/Storage | Accompanied by 5 allies 7144 | -8/Storage | Build established: Commander-Mutant 7498 | -8/Storage | Build established: Mutant 7741 | -8/Storage | Core integrity fell below 20% 7792 | -8/Storage | Lost 3 parts (1p2u) 7853 | -8/Storage | Discovered new exit (range 4) 7858 | -8/Storage | Identified exit to Recycling 7880 | -8/Storage | Entered Recycling 7896 | -8/Recycling | Found Scrap Engine 8393 | -8/Recycling | Destroyed by Y-45 Defender with Beam Rifle Last Messages --------------- 07941_ Connecting with Terminal... >>Index(Terminals) Found 6 terminals. Downloaded coordinate data. 07941_ Connecting with Terminal... >>Layout(Zone) Retrieving Zone 2W layout... Downloaded map data. 08023_ Acquired Corrupted Authchip [Device]. 08148_ Connecting with Terminal... 08253_ Dropped Flail. 08254_ Acquired Great Maul. 08260_ R-06 Scavenger collects Flail. 08267_ Discarded Adv. Targeting Computer. 08269_ Drone released from Drone Bay. 08270_ Acquired 50 matter. 08297_ Y-45 Defender springs to life. 08302_ Acquired Hardlight Generator. 08304_ Drone retrieved by Drone Bay. 08393_ Y-45 Defender suffers critical hit (Smash). Map ----- +----------------------------------------------------+ | | | | | | | | | | | | | | | | | | | ??????????????????????????????????? | | ??????????????????????????????????? | | ??????????????????????????????????? | | ??????????????????????????????????? | | ??????????????????????????????????? | | ????#############################?? | | ????# / * #?? | | ????# ######+##### #?? | | ????# # #?# #?? | | ????# + ### #?? | | ????# ### r## #?? | | ????# #?# ### / !#?? | | ????# #?# r## ! | #?? | | ????# #?# ### ! #?? | | ??### #?# #?# #?? | | ??#"" #?# #?# ! #?? | | ??#"Y #?# @ #?# ! ! #?? | | ??#"" #####Y######## ### | | ??### ##########+#### # | | ????# #?#####?# | | ????# #?# ### | | ????# #?# | | ????#### ##]]]### #?# ### ##### | | ???????# ##]]]### #### ##?# #???? | | ???????# ####### ### #??# ""??? | | ???#####+#####?# #??# Y"#?? | | ???# T #?# #####??# r ""#?? | | ???# """ #?## ##??????# ###?? | | ???# """ #??# #???????# #???? | | ???# """ #??# #######?# #???? | | ???# #??# # / #?# #???? | | ???# #### # ! #?# #???? | | ???# + +% #?# #???? | | ???# #### #r ! #?# #???? | | ???############## # *#?# #???? | | ??????????????#"" # #?# #???? | | ??????????????#"Y #! ] #?# #???? | | ??????????????#"" #= #?? ????? | | ??????????????### # #?? ????? | | ????????????????# # ! #?????????? | | ????????????????# # [ #?????????? | +----------------------------------------------------+ Best States ------------- Heat Dissipation 58 Energy Generation 16 Energy Capacity 290 Matter Stores 300 Matter Capacity 300 Sight Range 16 Terrain Scan Range 18 Terrain Scan Density 10 Armor Coverage 375 Evasion (%) 42 Targeting Accuracy 8 Recoil Reduction 3 Offensive Hacking 10 Authchip Count 2 Item Schematics ----------------- Mak. Cloaking Device | -8/Materials | Scanalyzed Robot Schematics ------------------ None Fabricated ------------ Nothing Alien Tech Used ----------------- None Achievements -------------- None Challenges ------------ None Game ------ Seed DamperArmoredVibroblade Manual? 0 Play Time 01:50:46 Cumulative 105.4 hours Start 2023.05.10 @ 01:03:58 End 2023.05.10 @ 11:17:25 Sessions 3 Manual Loads 0 Difficulty Rogue Special Mode None Game No. 31 Rogue 31 Adventurer 0 Explorer 0 Win Type - Total 4 Types 4/0/0/0/0/0/0/0/0 Lore% 30 Gallery% 49 Achievement% 41 Wizard Run 0 Options --------- ASCII 0 Keyboard 0 Movement Mouse Keybinds 0 Fullscreen 2 Font 16/SmallcapsGlow Map View 75x55 Tactical HUD 1 Map Filters NONE Filters NONE Steam 1 RUN: 51bca35b-7183-49ee-baf2-86fd9bb63f03